fUST/lending_fUST_20250523
["ID","MTS","AMOUNT","RATE_DAILY","PERIOD"]
[362071594,1747972240663,-430.0,0.00016438,2]
[362071596,1747972240672,-441.42534179,0.00016438,2]
[362071598,1747972240681,-289.53,0.00016438,2]
[362071600,1747972240692,-438.64138118,0.00016438,2]
[362071602,1747972240701,-453.55277055,0.00016438,2]
[362071604,1747972240711,-430.0,0.00016438,2]
[362071606,1747972240720,-483.38274605,0.00016438,2]
[362071609,1747972240742,-430.0,0.00016438,2]
[362071611,1747972240753,-430.0,0.00016438,2]
[362071613,1747972240763,-430.0,0.00016438,2]
[362071616,1747972240774,-430.0,0.00016438,2]
[362071618,1747972240784,-431.68283633,0.00016438,2]
[362071620,1747972240794,-430.0,0.00016438,2]
[362071622,1747972240804,-667.82,0.00016438,2]
[362071624,1747972240814,-430.0,0.00016438,2]
[362071626,1747972240823,-430.0,0.00016438,2]
[362071628,1747972240834,-458.3063288,0.00016438,2]
[362071630,1747972240843,-430.0,0.00016438,2]
[362071632,1747972240853,-460.81264542,0.00016438,2]
[362071634,1747972240862,-430.0,0.00016438,2]
[362071636,1747972240872,-430.0,0.00016438,2]
[362071638,1747972240882,-458.13971711,0.00016438,2]
[362071640,1747972240891,-260.97145883,0.00016438,2]
[362071642,1747972240902,-806.29,0.00016438,2]
[362071644,1747972240912,-430.0,0.00016438,2]
[362071647,1747972240922,-430.0,0.00016438,2]
[362071649,1747972240931,-430.0,0.00016438,2]
[362071651,1747972240941,-430.0,0.00016438,2]
[362071653,1747972240951,-538.86670532,0.00016438,2]
[362071655,1747972240960,-430.0,0.00016438,2]
[362071657,1747972240969,-560.19,0.00016438,2]
[362071659,1747972240979,-430.0,0.00016438,2]
[362071661,1747972240988,-430.0,0.00016438,2]
[362071663,1747972240998,-432.6000941,0.00016438,2]
[362071665,1747972241007,-433.91206048,0.00016438,2]
[362071667,1747972241017,-432.06876249,0.00016438,2]
[362071669,1747972241027,-430.0,0.00016438,2]
[362071672,1747972241037,-431.22081064,0.00016438,2]
[362071674,1747972241047,-426.97712672,0.00016438,2]
[362071676,1747972241056,-430.0,0.00016438,2]
[362071678,1747972241066,-430.0,0.00016438,2]
[362071680,1747972241076,-430.0,0.00016438,2]
[362071682,1747972241086,-430.0,0.00016438,2]
[362071685,1747972241098,-402.26931314,0.00016438,2]
[362071687,1747972241107,-430.0,0.00016438,2]
[362071689,1747972241117,-433.53277604,0.00016438,2]
[362071691,1747972241127,-430.0,0.00016438,2]
[362071692,1747972241137,-430.0,0.00016438,2]
[362071694,1747972241148,-430.0,0.00016438,2]
[362071696,1747972241158,-430.0,0.00016438,2]
[362071698,1747972241168,-430.0,0.00016438,2]
[362071700,1747972241178,-450.49114789,0.00016438,2]
[362071703,1747972241188,-430.0,0.00016438,2]
[362071705,1747972241197,-402.98358565,0.00016438,2]
[362071707,1747972241207,-435.2516082,0.00016438,2]
[362071709,1747972241217,-467.75511072,0.00016438,2]
[362071711,1747972241226,-435.21208988,0.00016438,2]
[362071713,1747972241236,-241.76049263,0.00016438,2]
[362071715,1747972241246,-388.95,0.00016702,3]
[362071717,1747972241255,-194.47,0.00016702,3]
[362071719,1747972241265,-430.0,0.00016712,2]
[362071721,1747972241274,-201.39041296,0.00016712,2]
[362071723,1747972241286,-462.2398733,0.00016712,2]
[362071725,1747972241295,-430.0,0.00016712,2]
[362071727,1747972241307,-430.0,0.00016712,2]
[362071729,1747972241317,-430.0,0.00016712,2]
[362071731,1747972241327,-430.0,0.00016712,2]
[362071733,1747972241337,-430.0,0.00016712,2]
[362071736,1747972241352,-430.0,0.00016712,2]
[362071738,1747972241361,-430.0,0.00016712,2]
[362071740,1747972241371,-430.0,0.00016712,2]
[362071742,1747972241381,-447.96823272,0.00016712,2]
[362071744,1747972241390,-296.70935938,0.00016712,2]
[362071746,1747972241400,-407.5460422,0.00016712,2]
[362071748,1747972241410,-430.0,0.00016712,2]
[362071750,1747972241419,-430.0,0.00016712,2]
[362071752,1747972241430,-430.0,0.00016712,2]
[362071754,1747972241440,-469.9339673,0.00016712,2]
[362071757,1747972241449,-430.0,0.00016712,2]
[362071759,1747972241459,-430.0,0.00016712,2]
[362071761,1747972241469,-430.0,0.00016712,2]
[362071763,1747972241478,-430.0,0.00016712,2]
[362071765,1747972241488,-430.0,0.00016712,2]
[362071767,1747972241497,-430.0,0.00016712,2]
[362071769,1747972241510,-430.0,0.00016712,2]
[362071771,1747972241519,-500.0,0.00016712,2]
[362071773,1747972241533,-382.83357064,0.00016712,2]
[362071775,1747972241543,-376.02928671,0.00016712,2]
[362071778,1747972241553,-430.0,0.00016712,2]
[362071781,1747972241563,-430.0,0.00016712,2]
[362071784,1747972241574,-430.0,0.00016712,2]
[362071786,1747972241584,-430.0,0.00016712,2]
[362071788,1747972241593,-430.0,0.00016712,2]
[362071790,1747972241607,-430.0,0.00016712,2]
[362071792,1747972241618,-430.0,0.00016712,2]
[362071794,1747972241628,-430.0,0.00016712,2]
[362071796,1747972241637,-430.0,0.00016712,2]
[362071798,1747972241647,-440.1771151,0.00016712,2]
[362071800,1747972241657,-454.61824171,0.00016712,2]
[362071802,1747972241666,-570.0,0.00016712,2]
[362071804,1747972241676,-430.0,0.00016712,2]
[362071806,1747972241686,-430.0,0.00016712,2]
[362071808,1747972241696,-430.0,0.00016712,2]
[362071810,1747972241706,-446.64381841,0.00016712,2]
[362071812,1747972241716,-430.0,0.00016712,2]
[362071814,1747972241726,-430.0,0.00016712,2]
[362071816,1747972241736,-218.19909823,0.00016712,2]
[362071818,1747972241746,-436.3411921,0.00016712,2]
[362071820,1747972241756,-430.0,0.00016712,2]
[362071822,1747972241767,-251.23500539,0.00016712,2]
[362071824,1747972241777,-430.0,0.00016712,2]
[362071827,1747972241787,-444.60281565,0.00016712,2]
[362071829,1747972241797,-210.51631516,0.00016712,2]
[362071831,1747972241807,-430.0,0.00016712,2]
[362071833,1747972241816,-447.68653886,0.00016712,2]
[362071835,1747972241826,-445.29519821,0.00016712,2]
[362071837,1747972241836,-430.0,0.00016712,2]
[362071839,1747972241846,-441.11416519,0.00016712,2]
[362071841,1747972241855,-430.0,0.00016712,2]
[362071843,1747972241866,-478.67,0.00016712,2]
[362071845,1747972241876,-430.0,0.00016712,2]
[362071847,1747972241886,-430.0,0.00016712,2]
[362071849,1747972241895,-441.8650418,0.00016712,2]
[362071851,1747972241905,-430.0,0.00016712,2]
[362071853,1747972241915,-430.0,0.00016712,2]
[362071855,1747972241925,-430.0,0.00016712,2]
[362071857,1747972241935,-430.0,0.00016712,2]
[362071859,1747972241944,-430.0,0.00016712,2]
[362071862,1747972241954,-430.0,0.00016712,2]
[362071864,1747972241967,-510.95,0.00016712,2]
[362071866,1747972241977,-430.0,0.00016712,2]
[362071868,1747972241986,-430.0,0.00016712,2]
[362071870,1747972241996,-430.0,0.00016712,2]
[362071872,1747972242006,-430.0,0.00016712,2]
[362071874,1747972242016,-544.01,0.00016712,2]
[362071876,1747972242025,-481.66976859,0.00016712,2]
[362071878,1747972242036,-430.0,0.00016712,2]
[362071880,1747972242046,-445.10961067,0.00016712,2]
[362071882,1747972242056,-407.08089917,0.00016712,2]
[362071885,1747972242066,-441.79670476,0.00016712,2]
[362071887,1747972242075,-430.0,0.00016712,2]
[362071889,1747972242086,-430.0,0.00016712,2]
[362071891,1747972242095,-430.0,0.00016712,2]
[362071893,1747972242105,-430.0,0.00016712,2]
[362071895,1747972242115,-469.12528058,0.00016712,2]
[362071913,1747972242282,-430.0,0.00016712,2]
[362071915,1747972242293,-430.0,0.00016712,2]
[362071917,1747972242303,-430.0,0.00016712,2]
[362071919,1747972242312,-430.0,0.00016712,2]
[362071922,1747972242323,-430.0,0.00016712,2]
[362071924,1747972242332,-430.0,0.00016712,2]
[362071926,1747972242343,-430.0,0.00016712,2]
[362071928,1747972242353,-430.0,0.00016712,2]
[362071930,1747972242363,-430.0,0.00016712,2]
[362071932,1747972242372,-667.82,0.00016712,2]
[362071934,1747972242382,-430.0,0.00016712,2]
[362071936,1747972242391,-430.0,0.00016712,2]
[362071938,1747972242402,-430.0,0.00016712,2]
[362071940,1747972242412,-806.29,0.00016712,2]
[362071942,1747972242422,-455.46263381,0.00016712,2]
[362071944,1747972242432,-430.0,0.00016712,2]
[362071947,1747972242442,-430.0,0.00016712,2]
[362071949,1747972242451,-560.19,0.00016712,2]
[362071951,1747972242460,-430.0,0.00016712,2]
[362071953,1747972242470,-430.0,0.00016712,2]
[362071955,1747972242479,-460.14033143,0.00016712,2]
[362071957,1747972242489,-430.0,0.00016712,2]
[362071959,1747972242499,-430.0,0.00016712,2]
[362071961,1747972242509,-430.0,0.00016712,2]
[362071963,1747972242519,-430.0,0.00016712,2]
[362071965,1747972242532,-430.0,0.00016712,2]
[362071967,1747972242542,-430.0,0.00016712,2]
[362071969,1747972242552,-400.68654641,0.00016886,2]
[362071971,1747972242562,-430.0,0.00016986,2]
[362071973,1747972242573,-440.7662601,0.00016986,2]
[362071975,1747972242583,-441.56855625,0.00016986,2]
[362071977,1747972242593,-430.0,0.00016986,2]
[362071979,1747972242604,-442.02609151,0.00016986,2]
[362071981,1747972242615,-430.0,0.00016986,2]
[362071983,1747972242624,-306.12086017,0.00016986,2]
[362071985,1747972242634,-430.0,0.00016986,2]
[362071987,1747972242643,-430.0,0.00016986,2]
[362071989,1747972242653,-372.02929743,0.00016986,2]
[362071991,1747972242663,-440.97754189,0.00016986,2]
[362071993,1747972242673,-430.0,0.00016986,2]
[362071995,1747972242682,-457.4470544,0.00016986,2]
[362071998,1747972242692,-430.0,0.00016986,2]
[362072000,1747972242702,-457.58863213,0.00016986,2]
[362072002,1747972242711,-430.0,0.00016986,2]
[362072004,1747972242721,-478.67,0.00016986,2]
[362072006,1747972242730,-430.0,0.00016986,2]
[362072008,1747972242740,-430.0,0.00016986,2]
[362072010,1747972242749,-450.26540493,0.00016986,2]
[362072012,1747972242759,-447.77163185,0.00016986,2]
[362072014,1747972242769,-430.0,0.00016986,2]
[362072016,1747972242779,-430.0,0.00016986,2]
[362072018,1747972242790,-510.95,0.00016986,2]
[362072020,1747972242799,-556.55102167,0.00016986,2]
[362072023,1747972242821,-458.61277364,0.00016986,2]
[362072026,1747972242832,-430.0,0.00016986,2]
[362072028,1747972242842,-544.01,0.00016986,2]
[362072030,1747972242852,-430.0,0.00016986,2]
[362072032,1747972242862,-566.27510713,0.00016986,2]
[362072034,1747972242872,-554.83052237,0.00016986,2]
[362072036,1747972242883,-430.0,0.00016986,2]
[362072038,1747972242894,-447.40207249,0.00016986,2]
[362072040,1747972242904,-430.0,0.00016986,2]
[362072042,1747972242914,-430.0,0.00016986,2]
[362072044,1747972242924,-488.89808864,0.00016986,2]
[362072046,1747972242934,-430.0,0.00016986,2]
[362072048,1747972242944,-430.0,0.00016986,2]
[362072051,1747972242955,-430.0,0.00016986,2]
[362072053,1747972242965,-430.0,0.00016986,2]
[362072055,1747972242976,-667.82,0.00016986,2]
[362072057,1747972242986,-430.0,0.00016986,2]
[362072059,1747972242995,-442.96961639,0.00016986,2]
[362072061,1747972243005,-519.58021921,0.00016986,2]
[362072063,1747972243015,-806.29,0.00016986,2]
[362072065,1747972243025,-569.18346715,0.00016986,2]
[362072067,1747972243037,-430.0,0.00016986,2]
[362072070,1747972243047,-560.19,0.00016986,2]
[362072072,1747972243057,-430.0,0.00016986,2]
[362072074,1747972243068,-262.2485459,0.00016986,2]
[362072076,1747972243078,-496.08887311,0.00016986,2]
[362072078,1747972243087,-430.0,0.00016986,2]
[362072080,1747972243098,-430.0,0.00016986,2]
[362072082,1747972243108,-2617.2,0.00017159,2]
[362072085,1747972243118,-2614.9,0.00017159,2]
[362072087,1747972243128,-2614.9,0.00017159,2]
[362072089,1747972243138,-2614.9,0.00017159,2]
[362072091,1747972243148,-2614.9,0.00017159,2]
[362072093,1747972243158,-2614.9,0.00017159,2]
[362072095,1747972243168,-2614.9,0.00017159,2]
[362072097,1747972243179,-2614.9,0.00017159,2]
[362072099,1747972243189,-2614.9,0.00017159,2]
[362072101,1747972243198,-2614.9,0.00017159,2]
[362072103,1747972243208,-2614.9,0.00017159,2]
[362072105,1747972243219,-2614.9,0.00017159,2]
[362072107,1747972243228,-2614.9,0.00017159,2]
[362072109,1747972243239,-500.0,0.00017259,2]
[362072111,1747972243248,-500.0,0.00017259,2]
[362072113,1747972243259,-500.0,0.00017259,2]
[362072116,1747972243269,-500.0,0.00017259,2]
[362072118,1747972243279,-500.0,0.00017259,2]
[362072120,1747972243290,-500.0,0.00017259,2]
[362072122,1747972243301,-500.0,0.00017259,2]
[362072124,1747972243311,-500.0,0.00017259,2]
[362072126,1747972243321,-500.0,0.00017259,2]
[362072128,1747972243331,-500.0,0.00017259,2]
[362072130,1747972243340,-460.24921609,0.00017259,2]
[362072132,1747972243350,-500.0,0.00017259,2]
[362072134,1747972243360,-500.0,0.00017259,2]
[362072136,1747972243370,-407.24817088,0.00017259,2]
[362072138,1747972243379,-589.46883434,0.00017259,2]
[362072141,1747972243391,-293.69840421,0.00017259,2]
[362072143,1747972243400,-2614.9,0.00017259,2]
[362072145,1747972243410,-2614.9,0.00017259,2]
[362072147,1747972243420,-2614.9,0.00017259,2]
[362072149,1747972243429,-2614.9,0.00017259,2]
[362072151,1747972243439,-2614.9,0.00017259,2]
[362072153,1747972243448,-2614.9,0.00017259,2]
[362072155,1747972243459,-2614.9,0.00017259,2]
[362072157,1747972243468,-2614.9,0.00017259,2]
[362072159,1747972243478,-427.00307512,0.0001726,2]
[362072161,1747972243488,-444.91628823,0.0001726,2]
[362072163,1747972243498,-220.69799738,0.0001726,2]
[362072165,1747972243508,-430.0,0.0001726,2]
[362072167,1747972243518,-478.67,0.0001726,2]
[362072169,1747972243530,-430.0,0.0001726,2]
[362072172,1747972243541,-450.65928732,0.0001726,2]
[362072174,1747972243551,-307.10569421,0.0001726,2]
[362072176,1747972243561,-430.0,0.0001726,2]
[362072178,1747972243571,-510.95,0.0001726,2]
[362072180,1747972243581,-462.45297523,0.0001726,2]
[362072182,1747972243591,-544.01,0.0001726,2]
[362072184,1747972243601,-430.0,0.0001726,2]
[362072186,1747972243612,-430.0,0.0001726,2]
[362072188,1747972243622,-430.0,0.0001726,2]
[362072190,1747972243631,-430.0,0.0001726,2]
[362072192,1747972243641,-466.47895279,0.0001726,2]
[362072195,1747972243660,-430.0,0.0001726,2]
[362072198,1747972243677,-290.17326464,0.0001726,2]
[362072201,1747972243692,-667.82,0.0001726,2]
[362072203,1747972243707,-430.0,0.0001726,2]
[362072206,1747972243723,-806.29,0.0001726,2]
[362072208,1747972243735,-371.94,0.0001726,2]
[362072210,1747972243747,-560.19,0.0001726,2]
[362072213,1747972243763,-430.0,0.0001726,2]
[362072216,1747972243777,-430.0,0.0001726,2]
[362072218,1747972243791,-430.0,0.0001726,2]
[362072220,1747972243805,-502.5039933,0.00017368,2]
[362072223,1747972243824,-501.38076374,0.00017368,2]
[362072225,1747972243838,-500.0,0.00017368,2]
[362072228,1747972243851,-500.0,0.00017368,2]
[362072230,1747972243865,-504.56033435,0.00017368,2]
[362072235,1747972243881,-500.0,0.00017368,2]
[362072238,1747972243895,-500.0,0.00017368,2]
[362072241,1747972243908,-500.0,0.00017373,2]
[362072243,1747972243920,-501.08594553,0.00017373,2]
[362072246,1747972243932,-500.0,0.000174,2]
[362072248,1747972243948,-500.0,0.00017416,2]
[362072251,1747972243960,-500.0,0.00017416,2]
[362072253,1747972243974,-500.0,0.00017427,2]
[362072255,1747972243988,-500.0,0.00017427,2]
[362072258,1747972244001,-511.92155204,0.00017427,2]
[362072260,1747972244013,-501.53692737,0.00017427,2]
[362072262,1747972244025,-500.0,0.00017458,2]
[362072265,1747972244037,-500.0,0.00017458,2]
[362072267,1747972244048,-739.28664206,0.000175,2]
[362072269,1747972244062,-478.67,0.00017534,2]
[362072271,1747972244073,-430.0,0.00017534,2]
[362072274,1747972244086,-430.0,0.00017534,2]
[362072276,1747972244099,-510.95,0.00017534,2]
[362072279,1747972244113,-544.01,0.00017534,2]
[362072281,1747972244125,-430.0,0.00017534,2]
[362072283,1747972244138,-430.0,0.00017534,2]
[362072286,1747972244153,-430.0,0.00017534,2]
[362072288,1747972244167,-481.67708032,0.00017534,2]
[362072291,1747972244182,-430.0,0.00017534,2]
[362072293,1747972244195,-667.82,0.00017534,2]
[362072296,1747972244208,-430.0,0.00017534,2]
[362072298,1747972244218,-806.29,0.00017534,2]
[362072300,1747972244229,-560.19,0.00017534,2]
[362072302,1747972244239,-430.0,0.00017534,2]
[362072304,1747972244251,-430.0,0.00017534,2]
[362072306,1747972244263,-430.0,0.00017534,2]
[362072309,1747972244276,-658.26,0.00017798,3]
[362072311,1747972244292,-4667.4,0.00017798,3]
[362072314,1747972244305,-3111.6,0.00017798,3]
[362072316,1747972244315,-1555.8,0.00017798,3]
[362072318,1747972244326,-314.57823366,0.00017798,3]
[362072320,1747972244338,-478.67,0.00017808,2]
[362072322,1747972244350,-466.96268543,0.00017808,2]
[362072323,1747972244364,-430.0,0.00017808,2]
[362072324,1747972244377,-510.95,0.00017808,2]
[362072325,1747972244388,-544.01,0.00017808,2]
[362072326,1747972244399,-430.0,0.00017808,2]
[362072327,1747972244410,-430.0,0.00017808,2]
[362072328,1747972244421,-198.89746904,0.00017808,2]
[362072329,1747972244433,-430.0,0.00017808,2]
[362072330,1747972244445,-667.82,0.00017808,2]
[362072331,1747972244456,-430.0,0.00017808,2]
[362072332,1747972244468,-806.29,0.00017808,2]
[362072333,1747972244480,-560.19,0.00017808,2]
[362072334,1747972244491,-430.0,0.00017808,2]
[362072335,1747972244502,-559.60182779,0.00017808,2]
[362072336,1747972244514,-430.0,0.00017808,2]
[362072337,1747972244525,-1000.0,0.00017915,2]
[362072338,1747972244542,-516.1339976,0.00017916,2]
[362072339,1747972244555,-1000.0,0.00017916,2]
[362072340,1747972244567,-1000.0,0.00017916,2]
[362072341,1747972244579,-501.22461101,0.00017921,2]
[362072342,1747972244592,-194.37661371,0.00017948,2]
[362072344,1747972244603,-420.0,0.00017952,2]
[362072346,1747972244616,-420.0,0.00017952,2]
[362072348,1747972244628,-1003.55857605,0.00017964,2]
[362072350,1747972244639,-1000.0,0.00017964,2]
[362072351,1747972244651,-501.74907307,0.00017975,2]
[362072353,1747972244663,-151.0,0.00018,2]
[362072356,1747972244674,-500.73938487,0.00018005,2]
[362072358,1747972244691,-1000.0,0.00018005,2]
[362072361,1747972244705,-777.9,0.00018072,3]
[362072363,1747972244718,-388.94,0.00018072,3]
[362072366,1747972244736,-151.0,0.00018082,2]
[362072368,1747972244748,-478.67,0.00018082,2]
[362072370,1747972244761,-430.0,0.00018082,2]
[362072373,1747972244773,-510.95,0.00018082,2]
[362072375,1747972244786,-544.01,0.00018082,2]
[362072377,1747972244799,-430.0,0.00018082,2]
[362072379,1747972244810,-430.0,0.00018082,2]
[362072382,1747972244822,-667.82,0.00018082,2]
[362072384,1747972244834,-430.0,0.00018082,2]
[362072386,1747972244847,-806.29,0.00018082,2]
[362072388,1747972244859,-560.19,0.00018082,2]
[362072391,1747972244871,-430.0,0.00018082,2]
[362072393,1747972244883,-325.00625954,0.00018082,2]
[362072395,1747972244895,-12647.66147447,0.00018346,3]
[362072396,1747972244907,-212.48480548,0.00018346,3]
[362072397,1747972244918,-478.67,0.00018356,2]
[362072398,1747972244931,-430.0,0.00018356,2]
[362072399,1747972244943,-510.95,0.00018356,2]
[362072400,1747972244955,-544.01,0.00018356,2]
[362072401,1747972244967,-502.00668668,0.00018356,2]
[362072403,1747972244981,-430.0,0.00018356,2]
[362072404,1747972244993,-667.82,0.00018356,2]
[362072406,1747972245005,-430.0,0.00018356,2]
[362072407,1747972245018,-806.29,0.00018356,2]
[362072408,1747972245031,-560.19,0.00018356,2]
[362072409,1747972245042,-430.0,0.00018356,2]
[362072410,1747972245054,-500.0,0.00018464,2]
[362072411,1747972245066,-1500.0,0.00018464,2]
[362072412,1747972245077,-503.41552726,0.00018512,2]
[362072413,1747972245090,-1500.26651183,0.00018553,2]
[362072414,1747972245102,-400.68654637,0.0001859,2]
[362072415,1747972245114,-478.67,0.0001863,2]
[362072416,1747972245125,-430.0,0.0001863,2]
[362072417,1747972245137,-510.95,0.0001863,2]
[362072418,1747972245149,-544.01,0.0001863,2]
[362072419,1747972245161,-430.0,0.0001863,2]
[362072420,1747972245172,-667.82,0.0001863,2]
[362072421,1747972245184,-430.0,0.0001863,2]
[362072422,1747972245195,-806.29,0.0001863,2]
[362072423,1747972245207,-560.19,0.0001863,2]
[362072424,1747972245219,-430.0,0.0001863,2]
[362072425,1747972245231,-1158.8427757,0.000189,2]
[362072426,1747972245242,-478.67,0.00018904,2]
[362072427,1747972245254,-430.0,0.00018904,2]
[362072429,1747972245267,-510.95,0.00018904,2]
[362072430,1747972245281,-544.01,0.00018904,2]
[362072431,1747972245293,-430.0,0.00018904,2]
[362072432,1747972245305,-667.82,0.00018904,2]
[362072433,1747972245317,-430.0,0.00018904,2]
[362072434,1747972245331,-806.29,0.00018904,2]
[362072435,1747972245345,-560.19,0.00018904,2]
[362072436,1747972245544,-430.0,0.00018904,2]
[362072437,1747972245556,-689.44558785,0.00019012,2]
[362072438,1747972245566,-3458.25393007,0.000191,2]
[362072439,1747972245576,-3458.25393003,0.000191,2]
[362072440,1747972245586,-3458.25393003,0.000191,2]
[362072441,1747972245596,-3458.25393003,0.000191,2]
[362072442,1747972245606,-3458.25393003,0.000191,2]
[362072443,1747972245617,-3458.25393003,0.000191,2]
[362072444,1747972245626,-3458.25393003,0.000191,2]
[362072445,1747972245636,-3458.25393003,0.000191,2]
[362072446,1747972245647,-3458.25393003,0.00019107,2]
[362072447,1747972245657,-151.0,0.00019178,2]
[362072448,1747972245667,-200.57006145,0.00019178,2]
[362072449,1747972245677,-723.47427707,0.00019178,2]
[362072450,1747972245687,-723.47427707,0.00019178,2]
[362072451,1747972245697,-723.47427707,0.00019178,2]
[362072452,1747972245707,-723.47427707,0.00019178,2]
[362072453,1747972245716,-723.47427707,0.00019178,2]
[362072454,1747972245726,-723.47427707,0.00019178,2]
[362072455,1747972245736,-723.47427707,0.00019178,2]
[362072456,1747972245746,-723.47427707,0.00019178,2]
[362072457,1747972245756,-723.47427707,0.00019178,2]
[362072458,1747972245766,-723.47427707,0.00019178,2]
[362072459,1747972245775,-723.47427707,0.00019178,2]
[362072460,1747972245785,-723.47427707,0.00019178,2]
[362072461,1747972245795,-723.47427707,0.00019178,2]
[362072462,1747972245804,-723.47427707,0.00019178,2]
[362072463,1747972245814,-723.47427707,0.00019178,2]
[362072464,1747972245825,-723.47427707,0.00019178,2]
[362072465,1747972245835,-723.47427707,0.00019178,2]
[362072466,1747972245847,-723.47427707,0.00019178,2]
[362072467,1747972245856,-723.47427707,0.00019178,2]
[362072468,1747972245866,-723.47427707,0.00019178,2]
[362072469,1747972245876,-723.47427707,0.00019178,2]
[362072470,1747972245887,-723.47427707,0.00019178,2]
[362072471,1747972245897,-723.47427707,0.00019178,2]
[362072472,1747972245906,-723.47427707,0.00019178,2]
[362072473,1747972245915,-723.47427707,0.00019178,2]
[362072474,1747972245924,-723.47427707,0.00019178,2]
[362072475,1747972245934,-723.47427707,0.00019178,2]
[362072476,1747972245943,-723.47427707,0.00019178,2]
[362072477,1747972245953,-723.47427707,0.00019178,2]
[362072478,1747972245963,-723.47427707,0.00019178,2]
[362072479,1747972245973,-723.47427707,0.00019178,2]
[362072480,1747972245983,-723.47427707,0.00019178,2]
[362072481,1747972245992,-723.47427707,0.00019178,2]
[362072482,1747972246003,-723.47427707,0.00019178,2]
[362072483,1747972246012,-723.47427707,0.00019178,2]
[362072484,1747972246022,-723.47427707,0.00019178,2]
[362072485,1747972246032,-723.47427707,0.00019178,2]
[362072486,1747972246043,-723.47427707,0.00019178,2]
[362072487,1747972246053,-723.47427707,0.00019178,2]
[362072489,1747972246062,-723.47427707,0.00019178,2]
[362072490,1747972246072,-723.47427707,0.00019178,2]
[362072491,1747972246081,-723.47427707,0.00019178,2]
[362072492,1747972246091,-723.47427707,0.00019178,2]
[362072493,1747972246101,-723.47427707,0.00019178,2]
[362072494,1747972246125,-723.47427707,0.00019178,2]
[362072495,1747972246136,-723.47427707,0.00019178,2]
[362072496,1747972246147,-723.47427707,0.00019178,2]
[362072497,1747972246157,-723.47427707,0.00019178,2]
[362072498,1747972246167,-723.47427707,0.00019178,2]
[362072499,1747972246177,-723.47427707,0.00019178,2]
[362072500,1747972246188,-723.47427707,0.00019178,2]
[362072501,1747972246198,-723.47427707,0.00019178,2]
[362072502,1747972246209,-723.47427707,0.00019178,2]
[362072503,1747972246219,-723.47427707,0.00019178,2]
[362072504,1747972246229,-723.47427707,0.00019178,2]
[362072505,1747972246240,-723.47427707,0.00019178,2]
[362072506,1747972246250,-723.47427707,0.00019178,2]
[362072507,1747972246259,-723.47427707,0.00019178,2]
[362072508,1747972246269,-723.47427707,0.00019178,2]
[362072509,1747972246280,-723.47427707,0.00019178,2]
[362072510,1747972246290,-723.47427707,0.00019178,2]
[362072511,1747972246300,-723.47427707,0.00019178,2]
[362072512,1747972246310,-723.47427707,0.00019178,2]
[362072513,1747972246320,-723.47427707,0.00019178,2]
[362072514,1747972246330,-723.47427707,0.00019178,2]
[362072515,1747972246340,-723.47427707,0.00019178,2]
[362072516,1747972246350,-723.47427707,0.00019178,2]
[362072517,1747972246360,-723.47427707,0.00019178,2]
[362072518,1747972246370,-723.47427707,0.00019178,2]
[362072519,1747972246380,-723.47427707,0.00019178,2]
[362072520,1747972246390,-723.47427707,0.00019178,2]
[362072521,1747972246400,-687.30056324,0.00019178,2]
[362072522,1747972246410,-687.30056324,0.00019178,2]